bitfinex/quotes_ETHUSD_20251212
["timestamp","ask_amount","ask_price","bid_price","bid_amount"]
[1765526917171,3.17158713,3247.9,3247.4,0.4652]
[1765526917466,3.65408713,3247.9,3247.4,0.9344]
[1765526917849,3.17158713,3247.9,3247.4,0.9344]
[1765526918051,0.4825,3247.8,3247.4,0.9344]
[1765526919352,0.4825,3247.8,3247.4,0.4652]
[1765526920574,0.58047529,3248.0,3247.7,0.4652]
[1765526920575,3.07882061,3248.0,3247.7,0.4652]
[1765526920965,3.56132061,3248.0,3247.7,0.4652]
[1765526921165,3.56132061,3248.0,3247.5,0.4692]
[1765526921366,0.4825,3247.9,3247.4,3.07930528]
[1765526921774,0.4825,3247.9,3247.4,3.54850528]
[1765526923486,0.5751,3247.9,3247.4,3.54850528]
[1765526923780,3.07882061,3248.0,3247.4,0.66280572]
[1765526924085,3.07882061,3248.0,3247.5,0.4505]
[1765526924086,3.52922061,3248.0,3247.5,0.4505]
[1765526924790,3.52922061,3248.0,3247.3,3.07941742]
[1765526925087,3.52922061,3248.0,3247.4,3.52986675]
[1765526926262,3.52922061,3248.0,3247.4,0.4505]
[1765526926461,0.543,3247.9,3247.4,0.4505]
[1765526928072,0.0926,3247.9,3247.4,3.52988479]
[1765526928267,0.002,3248.1,3247.8,0.4782]
[1765526928494,0.002,3248.1,3247.9,0.4782]
[1765526929791,0.474,3248.0,3247.4,9.42931476]
[1765526929987,0.474,3248.0,3247.4,4.19082941]
[1765526930285,3.55283576,3248.0,3247.4,4.19082941]
[1765526930492,3.55283576,3248.0,3247.5,0.41908294]
[1765526930882,0.5492,3248.0,3247.5,0.86958294]
[1765526932895,3.62802309,3248.0,3247.5,0.86958294]
[1765526933391,2.69204403,3248.0,3247.5,0.86958294]
[1765526933895,3.08078334,3248.1,3247.6,0.4505]
[1765526934897,0.002,3248.1,3247.5,3.498363]
[1765526935213,0.002,3248.1,3247.6,0.41593076]
[1765526935668,0.002,3248.1,3247.6,0.86643076]
[1765526936300,0.002,3248.1,3247.6,0.41593076]
[1765526937798,0.002,3248.1,3247.1,6.13934441]
[1765526938096,0.002,3248.1,3247.0,3.07972372]
[1765526938398,0.0307978,3248.0,3247.0,3.07972372]
[1765526938582,0.002,3248.1,3247.1,3.07965839]
[1765526939102,0.002,3248.1,3247.1,3.53015839]
[1765526939399,0.98597929,3248.0,3247.1,4.76004443]
[1765526939772,0.98597929,3248.0,3247.2,0.4505]
[1765526940089,0.98597929,3248.0,3247.2,6.13934441]
[1765526940486,0.98597929,3248.0,3247.3,0.4505]
[1765526941079,0.98597929,3248.0,3247.1,4.30954443]
[1765526941080,0.98597929,3248.0,3247.1,1.68038604]
[1765526941284,2.00858769,3248.0,3247.1,1.68038604]
[1765526942776,6.15782504,3247.9,3247.1,1.68038604]
[1765526943401,0.405504,3247.8,3247.1,1.22988604]
[1765526943601,0.0307978,3247.7,3246.9,9.21918067]
[1765526943805,0.0307978,3247.7,3246.9,5.68884441]
[1765526944006,0.0307978,3247.7,3247.0,0.4505]
[1765526944878,3.07919694,3247.6,3247.0,0.4505]
[1765526945379,0.405504,3247.5,3246.8,0.1809]
[1765526945574,1.06497357,3247.5,3246.7,3.08003596]
[1765526945885,0.405504,3247.5,3246.8,3.07992222]
[1765526946090,0.405504,3247.5,3246.8,3.53042222]
[1765526946281,0.405504,3247.5,3246.9,3.07985764]
[1765526946611,0.405504,3247.5,3246.9,0.4505]
[1765526946908,3.48483441,3247.5,3246.9,3.5303571]
[1765526947110,3.48483441,3247.5,3246.9,3.88339281]
[1765526947509,3.48483441,3247.5,3246.9,0.80353571]
[1765526947686,3.48483441,3247.5,3246.8,3.07995532]
[1765526948091,3.48483441,3247.5,3246.8,3.53045532]
[1765526949911,6.56416482,3247.5,3246.8,0.4505]
[1765526950230,3.48483441,3247.5,3246.8,3.53045121]
[1765526950782,3.48483441,3247.5,3246.9,0.4505]
[1765526953117,6.56416482,3247.5,3246.9,0.4505]
[1765526953279,6.56416482,3247.5,3246.7,3.08001772]
[1765526953480,6.56416482,3247.5,3246.8,0.30800177]
[1765526954106,3.48483441,3247.5,3246.8,0.30800177]
[1765526954692,6.56416482,3247.5,3246.8,0.30800177]
[1765526954899,6.56416482,3247.5,3246.8,3.38795397]
[1765526955219,6.56416482,3247.5,3246.8,0.30800177]
[1765526955914,6.56416482,3247.5,3246.8,3.38793859]
[1765526956118,3.48483441,3247.5,3246.8,3.87303859]
[1765526956320,0.405504,3247.9,3246.9,0.85490386]
[1765526956521,0.405504,3247.8,3246.9,0.85490386]
[1765526956817,0.405504,3247.8,3247.0,0.4676]
[1765526957210,0.405504,3247.6,3247.0,0.4676]
[1765526957920,3.07929176,3247.5,3247.0,0.4676]
[1765526958117,3.07929176,3247.5,3247.0,0.89187261]
[1765526959010,3.07929176,3247.5,3247.1,0.4676]
[1765526959393,3.07890187,3248.0,3247.4,0.4932]
[1765526959587,3.07890187,3248.0,3247.5,0.4932]
[1765526959988,0.405504,3247.9,3247.5,0.9608]
[1765526960388,0.405504,3247.9,3246.7,0.92453199]
[1765526960389,0.0307978,3247.8,3246.7,0.92453199]
[1765526960619,0.0307978,3247.8,3246.7,3.07997177]
[1765526960823,0.0307978,3247.8,3246.6,3.08011198]
[1765526961125,0.405504,3247.6,3246.6,3.54771198]
[1765526961327,0.0307978,3247.5,3246.7,0.4676]
[1765526961929,0.405504,3247.4,3246.7,0.4676]
[1765526962129,0.405504,3247.5,3246.7,0.4676]
[1765526962632,0.405504,3247.5,3246.6,3.08011198]
[1765526962834,1.09267263,3247.5,3245.9,3.54939244]
[1765526963033,3.48569528,3246.6,3246.1,0.1856]
[1765526963240,3.07998871,3246.8,3246.1,3.26620227]
[1765526963447,0.92495671,3247.4,3246.7,0.4932]
[1765526963623,0.405504,3247.3,3246.9,0.4932]
[1765526963931,3.07910213,3247.7,3246.9,0.4932]
[1765526964134,0.405504,3247.6,3246.9,0.9608]
[1765526964710,0.405504,3247.6,3246.6,0.4676]
[1765526965208,0.405504,3247.4,3246.4,0.58047529]
[1765526965437,0.4363018,3247.4,3246.5,0.4676]
[1765526965934,0.4363018,3247.4,3246.5,3.54777373]
[1765526967119,3.07948141,3247.3,3246.6,3.08013195]
[1765526967318,3.07948141,3247.3,3246.6,3.54773195]
[1765526967529,3.48492481,3247.4,3246.7,0.4676]
[1765526967935,3.48481287,3247.5,3246.7,0.4676]
[1765526968431,0.8783104,3247.8,3247.0,5.69223896]
[1765526968646,3.95734759,3247.8,3247.4,0.4932]
[1765526969135,0.405504,3247.7,3247.4,0.4932]
[1765526969436,3.48461136,3247.7,3247.4,0.4932]
[1765526969808,3.48461136,3247.7,3247.4,0.9608]
[1765526970718,3.48461136,3247.7,3247.2,0.4676]
[1765526973542,0.405504,3247.7,3247.2,0.4676]
[1765526973719,0.8783104,3247.8,3247.6,0.4932]
[1765526973919,0.8783104,3247.8,3247.7,0.4932]
[1765526974118,0.8783104,3247.8,3247.7,0.9608]
[1765526975413,0.002,3248.1,3247.7,0.9608]
[1765526975737,0.002,3248.1,3248.0,0.4932]
[1765526978640,0.002,3248.1,3247.8,0.4676]
[1765526979740,0.002,3248.1,3248.0,0.4932]
[1765526980143,0.002,3248.1,3248.0,0.9608]
[1765526981226,0.002,3248.1,3248.0,0.4932]
[1765526981431,0.002,3248.1,3248.0,0.9608]
[1765526981614,0.002,3248.1,3248.0,1.36478064]
[1765526982348,0.002,3248.1,3248.0,4.44359837]
[1765526983014,0.002,3248.1,3248.0,0.89718064]
[1765526983213,0.002,3248.1,3248.0,0.4932]
[1765526985118,0.002,3248.1,3248.0,0.9726]
[1765526985318,0.002,3248.1,3248.0,4.05141773]
[1765526986126,0.002,3248.1,3248.0,9.74365669]
[1765526987829,0.002,3248.1,3248.0,9.7376987]
[1765526988142,0.002,3248.1,3248.0,11.05634104]
[1765526993859,0.002,3248.1,3248.0,17.3230973]
[1765526994023,0.002,3248.1,3248.0,11.63681633]
[1765526995166,0.002,3248.1,3248.0,17.3230973]
[1765526995323,0.002,3248.1,3248.0,39.8574443]
[1765526995527,0.002,3248.1,3248.0,31.0616853]
[1765526995851,0.002,3248.1,3248.0,29.3547133]
[1765526996043,0.002,3248.1,3248.0,29.34933528]
[1765526996240,0.002,3248.1,3248.0,25.85084528]
[1765526996446,0.002,3248.1,3248.0,36.72155928]
[1765526996846,0.002,3248.1,3248.0,27.31963628]
[1765526997358,0.002,3248.1,3248.0,35.98374628]
[1765526997729,0.002,3248.1,3248.0,35.24090228]
[1765526998341,0.002,3248.1,3248.0,17.31771928]
[1765526998541,0.002,3248.1,3248.0,28.70424928]
[1765526999441,0.002,3248.1,3248.0,31.78044528]
[1765526999968,0.002,3248.1,3248.0,25.87865628]
[1765527000427,0.002,3248.1,3248.0,21.16546128]
[1765527000632,0.002,3248.1,3248.0,11.63412732]
[1765527003929,0.002,3248.1,3248.0,5.47113536]
[1765527004136,0.002,3248.1,3248.0,5.95053536]
[1765527009374,0.002,3248.1,3248.0,5.94325536]
[1765527009966,0.002,3248.1,3248.0,11.62684732]
[1765527010143,0.002,3248.1,3248.0,11.99657295]
[1765527011078,0.002,3248.1,3248.0,37.82208091]
[1765527011957,0.002,3248.1,3248.0,41.61208091]
[1765527012848,0.002,3248.1,3248.0,37.82208091]
[1765527015069,0.002,3248.1,3248.0,41.61208091]
[1765527017155,0.002,3248.1,3248.0,35.92848895]
[1765527017564,0.002,3248.1,3248.0,21.39606299]
[1765527017815,0.002,3248.1,3248.0,17.4895877]
[1765527018055,0.002,3248.1,3248.0,17.60606299]
[1765527018256,0.002,3248.1,3248.0,3.44854336]
[1765527019492,0.002,3248.1,3248.0,3.07881773]
[1765527020485,0.002,3248.1,3247.9,0.58047529]
[1765527020486,0.002,3248.1,3247.9,3.07890312]
[1765527022488,0.002,3248.1,3247.6,3.07917973]
[1765527022692,0.002,3248.1,3247.8,3.07898782]
[1765527023687,0.002,3248.1,3247.5,6.15858352]
[1765527023888,0.002,3248.1,3247.6,0.95020092]
[1765527024093,0.002,3248.1,3247.8,0.36972563]
[1765527024310,0.002,3248.1,3247.6,0.95020092]
[1765527026102,0.002,3248.1,3247.7,6.15820426]
[1765527029997,0.002,3248.1,3247.5,3.07919881]
[1765527030189,0.002,3248.1,3247.0,0.95020092]
[1765527030371,0.002,3248.1,3247.2,0.36972563]
[1765527032000,0.002,3248.1,3247.3,6.15896282]
[1765527034398,0.002,3248.1,3247.1,6.73978253]
[1765527034573,0.002,3248.1,3247.4,0.36972563]
[1765527035800,0.002,3248.1,3247.6,0.36972563]
[1765527036100,0.002,3248.1,3247.5,0.464]
[1765527036301,0.002,3248.1,3247.6,0.36972563]
[1765527036607,0.002,3248.1,3247.7,6.15820426]
[1765527036806,0.002,3248.1,3247.7,3.07910213]
[1765527037011,0.002,3248.1,3247.7,6.15820426]
[1765527039715,0.002,3248.1,3248.0,0.4918]
[1765527040216,0.002,3248.1,3248.0,0.9558]
[1765527040795,0.002,3248.1,3248.0,4.61509302]
[1765527042215,0.002,3248.1,3248.0,4.15109302]
[1765527048526,0.002,3248.1,3248.0,4.64979302]
[1765527048727,0.002,3248.1,3248.0,5.45963675]
[1765527049329,0.002,3248.1,3248.0,11.14819161]
[1765527049515,0.002,3248.1,3248.0,11.51791724]
[1765527050926,0.002,3248.1,3248.0,11.01921724]
[1765527051127,0.002,3248.1,3248.0,5.33066238]
[1765527051321,0.002,3248.1,3248.0,4.96093675]
[1765527051831,0.002,3248.1,3248.0,4.46913675]
[1765527052712,0.002,3248.1,3248.0,4.83886238]
[1765527056229,0.002,3248.1,3248.0,5.32436238]
[1765527056431,0.002,3248.1,3248.0,5.82306238]
[1765527058427,0.002,3248.1,3248.0,11.50988959]
[1765527058601,0.002,3248.1,3248.0,5.82306238]
[1765527058802,0.002,3248.1,3248.0,11.50988959]
[1765527059724,0.002,3248.1,3248.0,5.87306238]
[1765527060129,0.002,3248.1,3248.0,5.99626914]
[1765527061635,0.002,3248.1,3248.0,11.68309635]
[1765527061845,3.07630569,3250.7,3248.5,0.6787]
[1765527062053,3.07670113,3250.3,3248.6,15.5178788]
[1765527062254,5.68682721,3251.1,3248.6,15.5178788]
[1765527062255,3.07634678,3250.7,3248.6,47.9365195]
[1765527062414,0.002,3249.8,3249.3,5.68682721]
[1765527062616,0.002,3249.8,3249.3,6.17232721]
[1765527062920,0.002,3249.8,3249.3,6.67102721]
[1765527064005,0.002,3249.8,3249.3,9.74861315]
[1765527064322,0.002,3249.8,3249.3,11.08053291]
[1765527065118,0.002,3249.8,3249.3,10.58183291]
[1765527066122,0.002,3249.8,3249.3,11.08053291]
[1765527069320,0.002,3249.8,3249.3,10.58183291]
[1765527069750,0.002,3249.8,3249.3,11.08053291]
[1765527071816,0.002,3249.8,3249.3,11.6610082]
[1765527072113,0.002,3250.1,3249.3,11.6610082]
[1765527072114,0.002,3250.1,3249.7,0.4855]
[1765527072319,0.002,3250.1,3250.0,5.68682721]
[1765527072541,0.002,3250.1,3250.0,6.25550993]
[1765527073428,0.002,3250.1,3250.0,6.75510993]
[1765527073632,0.002,3250.1,3250.0,7.24950993]
[1765527073833,0.002,3250.1,3250.0,10.326433]
[1765527074052,0.002,3250.1,3250.0,10.90690829]
[1765527074743,0.002,3250.1,3250.0,10.41250829]
[1765527076031,0.002,3250.1,3250.0,9.91290829]
[1765527076238,0.002,3250.1,3250.0,1.14915801]
[1765527076553,0.002,3250.1,3249.9,3.07694577]
[1765527076725,0.002,3250.1,3249.4,5.68682721]
[1765527076921,0.002,3250.1,3249.6,3.07729559]
[1765527077254,0.002,3250.1,3249.4,3.07745948]
[1765527078974,0.002,3250.1,3249.6,5.68682721]
[1765527079182,0.002,3250.1,3249.6,6.871005]
[1765527079553,0.002,3250.1,3249.6,5.68682721]
[1765527079957,0.002,3250.1,3249.6,8.76403816]
[1765527081782,0.002,3250.1,3249.6,11.84133998]
[1765527082085,0.002,3250.1,3250.0,3.07692307]
[1765527082279,0.002,3250.1,3250.0,3.55252307]
[1765527082492,0.002,3250.1,3250.0,3.07692307]
[1765527082779,0.002,3250.1,3249.8,3.07708458]
[1765527082983,0.002,3250.1,3249.7,3.07714245]
[1765527083282,0.002,3250.1,3249.8,3.07708935]
[1765527083666,0.002,3250.1,3249.7,3.07720277]
[1765527084190,0.002,3250.1,3249.6,3.07730182]
[1765527085372,0.002,3250.1,3249.5,8.76421003]
[1765527086083,0.002,3250.1,3249.5,11.84160655]
[1765527086902,0.002,3250.1,3249.5,6.15477934]
[1765527087204,0.002,3250.1,3249.5,11.83589912]
[1765527087402,0.002,3250.1,3249.8,5.68111978]
[1765527088000,0.002,3250.1,3250.0,0.4756]
[1765527088200,0.002,3250.1,3250.0,3.55252307]
[1765527088411,0.002,3250.1,3250.0,3.07692307]
[1765527088591,0.002,3250.1,3249.8,5.68111978]
[1765527088797,0.002,3250.1,3249.9,0.87582644]
[1765527088977,0.002,3250.1,3249.8,5.68111978]
[1765527089173,0.002,3250.1,3249.7,3.07714461]
[1765527089693,0.002,3250.1,3249.6,5.68111978]
[1765527090503,0.002,3250.1,3249.7,3.0771441]
[1765527090800,0.002,3250.1,3249.4,0.58047529]
[1765527091006,0.002,3250.1,3249.3,5.68111978]
[1765527091204,0.002,3250.1,3249.4,3.07746147]
[1765527092105,0.002,3250.1,3249.5,3.07738416]
[1765527092479,0.002,3250.1,3249.4,3.07749122]
[1765527092680,0.61752781,3250.1,3249.4,3.07749122]
[1765527093622,0.4363018,3250.0,3248.8,3.07797913]
[1765527093812,0.405504,3250.0,3248.7,0.58047529]
[1765527094118,0.405504,3250.0,3249.2,3.07765704]
[1765527094490,0.405504,3250.0,3249.1,3.07771053]
[1765527094713,3.48261643,3249.8,3248.9,0.58047529]
[1765527095330,3.74745301,3249.9,3248.9,6.26159507]
[1765527095508,3.74745301,3249.9,3248.9,6.74419507]
[1765527095699,3.07703785,3249.9,3248.9,6.74419507]
[1765527096035,0.405504,3250.0,3249.2,5.68111978]
[1765527096317,0.405504,3250.0,3249.2,6.05084541]
[1765527096894,3.48251815,3250.0,3249.3,3.07758594]
[1765527098716,6.5595323,3250.0,3249.2,3.07764165]
[1765527098915,7.21568553,3250.0,3249.2,3.07764165]
[1765527099327,4.13867138,3250.0,3249.2,3.07764165]
[1765527101927,3.07701415,3250.0,3249.2,3.07764165]
[1765527102129,3.07701415,3250.0,3249.2,3.44736728]
[1765527104241,6.1540283,3250.0,3249.2,0.36972563]
[1765527104443,0.0307978,3249.9,3249.1,3.07774051]
[1765527105245,0.64948041,3249.9,3249.1,3.07774051]
[1765527105453,0.405504,3249.8,3249.0,3.07783443]
[1765527105850,0.405504,3249.8,3249.1,3.07777493]
[1765527106950,3.48264746,3249.8,3248.9,3.54927228]
[1765527107148,0.002,3250.1,3249.3,5.68111978]
[1765527107446,0.002,3250.1,3249.3,6.24923176]
[1765527107747,0.002,3250.1,3249.3,6.72063176]
[1765527108250,5.68111978,3249.7,3248.5,0.1932]
[1765527108449,5.68111978,3249.7,3248.7,3.07811828]
[1765527108651,5.68111978,3249.7,3248.2,6.33411978]
[1765527108855,0.405504,3249.3,3248.3,3.07844471]
[1765527109056,0.405504,3249.3,3248.3,6.48308256]
[1765527110561,0.405504,3249.3,3248.3,3.40454918]
[1765527111162,0.405504,3249.1,3248.3,6.48308256]
[1765527111525,0.405504,3249.1,3248.3,3.40454918]
[1765527112156,0.405504,3249.1,3248.3,6.48308256]
[1765527112357,0.405504,3249.1,3248.3,3.40454918]
[1765527113252,3.07778824,3249.1,3248.3,6.48308256]
[1765527114661,0.405504,3249.2,3248.3,6.48308256]
[1765527115486,3.07777538,3249.1,3248.3,6.48308256]
[1765527116338,3.07777538,3249.1,3248.3,3.40454918]
[1765527117473,6.15498244,3249.4,3248.3,6.48308256]
[1765527117674,1.06155264,3249.3,3248.3,6.15697809]
[1765527117875,1.06155264,3249.3,3248.4,0.4714]
[1765527118172,0.405504,3249.3,3248.4,0.84112563]
[1765527118373,0.405504,3249.4,3248.4,0.84112563]
[1765527118573,0.405504,3249.4,3248.6,0.36972563]
[1765527118873,0.405504,3249.4,3248.4,0.36972563]
[1765527119076,0.405504,3249.4,3248.4,0.84112563]
[1765527119448,3.07758594,3249.3,3248.6,3.07824909]
[1765527121474,3.07758594,3249.3,3248.1,0.37072563]
[1765527121475,0.405504,3249.0,3248.1,3.5510306]
[1765527121673,0.4363018,3249.0,3248.2,3.07862816]
[1765527122352,0.405504,3249.0,3248.2,3.07862816]
[1765527122778,0.405504,3249.5,3248.4,0.36972563]
[1765527122954,0.405504,3249.5,3248.9,0.4568]
[1765527123779,0.405504,3249.3,3248.9,0.4568]
[1765527124682,3.07741562,3249.5,3248.9,0.4568]
[1765527124879,0.405504,3249.4,3248.9,0.4568]
[1765527125256,0.405504,3249.4,3248.9,0.9282]
[1765527125457,0.405504,3249.4,3249.0,0.4714]
[1765527125851,3.07701775,3249.9,3249.0,0.4714]
[1765527126064,0.98597929,3249.8,3249.0,0.4714]
[1765527126267,0.405504,3249.6,3249.0,0.4714]
[1765527127008,0.405504,3249.8,3249.0,0.4714]
[1765527127754,0.405504,3249.8,3248.6,0.36972563]
[1765527127755,0.405504,3249.6,3248.8,3.07805321]
[1765527128176,0.405504,3249.6,3248.8,3.54945321]
[1765527129481,0.405504,3249.6,3248.6,0.36972563]
[1765527129670,1.06149582,3249.6,3248.6,3.07817558]
[1765527129873,6.56029704,3249.5,3248.5,0.58047529]
[1765527130257,6.56029704,3249.5,3248.5,1.05187529]
[1765527130258,3.48290052,3249.5,3248.5,1.05187529]
[1765527130457,3.48290052,3249.5,3248.5,1.42160092]
[1765527130789,3.48290052,3249.5,3248.6,0.4714]
[1765527130979,3.48290052,3249.5,3248.7,0.71074736]
[1765527131492,3.48290052,3249.5,3248.8,0.4714]
[1765527132161,6.56029704,3249.5,3248.8,0.4714]
[1765527132491,3.48290052,3249.5,3248.8,3.5494443]
[1765527132790,3.48290052,3249.5,3248.8,4.21221316]
[1765527133974,0.58047529,3250.0,3248.8,4.21221316]
[1765527134176,0.405504,3249.9,3248.7,3.07808053]
[1765527134569,0.405504,3249.9,3248.4,0.36972563]
[1765527134570,0.405504,3249.9,3248.8,3.0780406]
[1765527135092,0.405504,3249.9,3248.9,0.4559]
[1765527135962,6.15422486,3249.8,3248.7,3.07807249]
[1765527136161,0.405504,3249.6,3248.6,3.07822162]
[1765527137089,0.0307978,3249.5,3248.6,3.07822162]
[1765527137292,0.4363018,3249.6,3248.6,3.07822162]
[1765527138195,0.405504,3249.4,3248.6,3.07822162]
[1765527138691,0.405504,3249.4,3248.6,3.56932162]
[1765527138881,0.405504,3249.4,3248.7,0.66476451]
[1765527140295,0.405504,3249.5,3248.7,3.74285268]
[1765527140592,0.405504,3249.5,3248.8,0.4911]
[1765527140898,0.405504,3250.0,3248.8,0.4911]
[1765527141188,0.405504,3249.8,3248.8,1.2223107]
[1765527141574,0.405504,3249.8,3248.9,0.4911]
[1765527141775,0.405504,3249.8,3248.9,0.86082563]
[1765527142592,0.405504,3249.6,3248.9,3.93874687]
[1765527143095,0.405504,3249.6,3248.9,0.4911]
[1765527143693,0.405504,3249.6,3248.9,3.56904474]
[1765527143893,0.405504,3249.6,3248.9,4.2707363]
[1765527144271,0.405504,3249.6,3248.9,4.27072554]
[1765527144486,3.07739652,3249.5,3248.9,3.77962554]
[1765527144687,0.405504,3249.7,3249.0,0.4911]
[1765527145513,3.48271112,3249.7,3249.0,0.4911]
[1765527145797,6.55991824,3249.7,3249.0,0.4911]
[1765527146800,3.48271112,3249.7,3249.0,0.4911]
[1765527147096,6.55991824,3249.7,3249.0,0.4911]
[1765527149776,7.21591006,3249.7,3248.4,0.4911]
[1765527149978,7.21591006,3249.7,3248.7,3.07807474]
[1765527150178,7.21591006,3249.7,3248.5,0.36972563]
[1765527150413,7.21591006,3249.7,3248.6,3.56932283]
[1765527150812,10.29311718,3249.7,3248.6,0.4911]
[1765527150997,0.405504,3249.5,3248.6,3.56933415]
[1765527151190,0.405504,3249.5,3248.7,3.07811213]
[1765527151915,3.07749122,3249.4,3248.6,3.56931101]
[1765527152203,6.15498244,3249.4,3248.6,3.56931101]
[1765527152898,3.07749122,3249.4,3248.6,3.56931101]
[1765527153102,3.07749122,3249.4,3248.7,0.66476495]
[1765527153410,3.07749122,3249.4,3248.7,1.15586495]
[1765527154010,3.07749122,3249.4,3248.7,4.23395702]
[1765527154210,3.07749122,3249.4,3248.7,3.56919207]
[1765527155714,3.07749122,3249.4,3248.8,0.4911]
[1765527156219,0.405504,3249.4,3248.8,3.56913299]
[1765527156916,0.405504,3249.4,3248.9,0.4911]
[1765527157885,0.002,3250.1,3249.4,30.0]
[1765527158192,0.002,3251.5,3249.4,30.0]
[1765527158193,0.002,3250.9,3250.2,0.58047529]
[1765527158402,0.002,3250.9,3250.8,0.4541]
[1765527158784,0.002,3250.9,3250.8,0.9452]
[1765527159002,0.6825,3250.9,3250.3,0.12313621]
[1765527159206,0.1322,3250.9,3250.7,0.36972563]
[1765527160026,0.1585,3250.8,3250.5,0.36972563]
[1765527160929,0.5215,3250.9,3250.1,0.36972563]
[1765527160930,0.3893,3250.6,3250.1,0.36972563]
[1765527161091,0.1608,3250.4,3250.1,0.36972563]
[1765527164102,0.1608,3250.4,3249.9,3.93783741]
[1765527164291,0.1608,3250.4,3250.1,0.36972563]
[1765527165640,0.1608,3250.4,3250.0,0.36972563]
[1765527167331,0.1585,3250.1,3249.4,0.36972563]
[1765527167497,0.405504,3250.3,3249.6,0.36972563]
[1765527167698,3.0768284,3250.1,3249.6,0.36972563]
[1765527167993,0.1585,3249.7,3249.6,0.36972563]
[1765527168201,0.1585,3249.7,3249.4,3.44721223]
[1765527168405,0.3893,3250.0,3249.5,3.07738862]
[1765527168610,0.3893,3250.0,3249.6,3.07729367]
[1765527169416,0.3893,3250.0,3249.4,1.34621695]
[1765527169627,0.3893,3250.0,3249.4,3.91779594]
[1765527170126,3.07677235,3250.2,3249.6,0.36972563]
[1765527172029,3.46837235,3250.2,3249.6,0.36972563]
[1765527176436,3.07616586,3250.8,3250.1,0.4862]
[1765527176638,0.97197529,3250.7,3250.1,0.4862]
[1765527176807,0.1585,3250.2,3249.8,0.84032563]
[1765527181557,0.1585,3250.2,3249.9,0.4706]
[1765527181849,0.1585,3250.2,3249.8,0.84032563]
[1765527182254,3.07616586,3250.8,3250.1,0.4862]
[1765527182414,0.405504,3250.8,3250.4,0.36972563]
[1765527182618,0.407504,3250.9,3250.4,0.36972563]
[1765527182819,0.407504,3250.9,3250.5,0.4706]
[1765527183246,0.407504,3250.9,3250.4,0.36972563]
[1765527183429,0.407504,3250.9,3250.4,0.84032563]
[1765527184254,3.07810021,3250.9,3250.4,0.84032563]
[1765527185154,0.407504,3250.9,3250.4,0.84032563]
[1765527185352,0.930704,3250.9,3250.4,0.84032563]
[1765527187822,4.00680983,3250.9,3250.4,0.84032563]
[1765527191558,4.00680983,3250.9,3250.4,0.36972563]
[1765527191559,3.61530983,3250.9,3250.4,0.36972563]
[1765527191859,3.87510983,3250.9,3250.4,0.84032563]
[1765527192049,0.002,3250.9,3250.8,0.4862]
[1765527192559,0.1589,3250.9,3250.6,0.36972563]
[1765527196090,0.1589,3250.9,3250.6,3.44602819]
[1765527196239,0.1589,3250.9,3250.6,4.6414098]
[1765527197276,0.002,3250.9,3250.8,0.4777]
[1765527198638,0.5481,3250.9,3250.6,0.72738161]
[1765527198838,0.5229,3250.9,3250.4,0.75134063]
[1765527199059,0.1592,3250.7,3250.4,4.29583053]
[1765527199259,0.5229,3250.9,3250.4,4.29583053]
[1765527199763,0.002,3250.9,3250.5,0.468]
[1765527200769,0.3915,3250.8,3250.4,0.75134063]
[1765527201166,3.20979506,3250.9,3250.4,0.75134063]
[1765527201374,0.3915,3250.8,3250.2,3.91441844]
[1765527202775,3.46768653,3250.8,3250.2,3.44641844]
[1765527203843,3.46768653,3250.8,3250.2,0.36972563]
[1765527204049,3.46768653,3250.8,3250.4,0.36972563]
[1765527204261,0.3915,3250.7,3250.4,0.36972563]
[1765527204459,0.1569,3250.5,3250.4,0.36972563]
[1765527205514,0.1569,3250.5,3250.2,0.36972563]
[1765527205651,0.0039,3250.3,3250.0,0.36972563]
[1765527207348,0.3915,3250.1,3250.0,0.36972563]
[1765527208279,0.1569,3250.3,3250.0,0.36972563]
[1765527208591,3.46797367,3250.5,3250.0,0.36972563]
[1765527208751,0.3915,3250.4,3250.0,0.36972563]
[1765527209586,0.002,3250.9,3250.3,6.52657159]
[1765527209757,0.002,3250.9,3250.8,0.4777]
[1765527210171,0.002,3250.9,3250.3,6.04887159]
[1765527210380,0.002,3250.9,3250.8,0.4777]
[1765527212482,0.1612,3250.9,3250.7,0.36972563]
[1765527212780,0.002,3250.9,3250.7,3.07625711]
[1765527213157,0.002,3250.9,3250.8,0.4777]
[1765527214182,0.002,3250.9,3250.8,4.02186586]
[1765527219212,0.002,3250.9,3250.8,0.4777]
[1765527219495,0.002,3250.9,3250.8,0.9457]
[1765527220264,0.002,3250.9,3250.8,0.4777]
[1765527220464,0.002,3250.9,3250.8,1.56783596]
[1765527221277,0.002,3250.9,3250.8,4.64400182]
[1765527221797,0.002,3250.9,3250.8,5.11200182]
[1765527223195,0.002,3250.9,3250.8,5.69247711]
[1765527223699,0.002,3250.9,3250.8,5.8155921]
[1765527225108,0.002,3250.9,3250.8,11.49125192]
[1765527225408,0.002,3251.1,3251.0,3.07597662]
[1765527225708,0.002,3251.1,3251.0,6.95703219]
[1765527225909,0.002,3251.1,3251.0,7.41153219]
[1765527226771,0.3935,3251.1,3250.9,19.998]
[1765527226982,0.0016,3251.0,3250.9,19.998]
[1765527236204,0.002,3251.1,3250.9,19.998]
[1765527236406,0.1569,3251.0,3250.9,19.998]
[1765527244895,3.07561221,3251.4,3250.6,3.53082343]
[1765527244896,3.07430283,3252.8,3252.0,3.51537925]
[1765527245132,10.18561137,3252.1,3252.0,3.51537925]
[1765527246924,10.59111537,3252.1,3252.0,3.51537925]
[1765527257633,0.405504,3251.8,3249.9,6.04818854]
[1765527257835,0.405504,3251.6,3250.4,0.461]
[1765527259223,0.405504,3251.3,3250.4,0.461]
[1765527259417,0.405504,3251.1,3250.5,0.35376283]
[1765527259925,0.405504,3251.1,3250.6,0.461]
[1765527263648,3.07597662,3251.0,3250.6,0.461]
[1765527264021,3.07597662,3251.0,3250.9,0.4818]
[1765527264647,0.486,3251.2,3250.9,0.9428]
[1765527264816,3.07562973,3251.4,3251.1,0.669]